Cogmind - Beta 15 *** ADVENTURER MODE // 2025.07.22 @ 19:06:07 Player: Moridin Result: Destroyed by P-60 Hacker with Shock Rifle Performance ------------- Evolutions (3) 1500 Regions Visited (5) 1000 Robots Destroyed (52) 260 Value Destroyed (1717) 1717 Prototype IDs (8) 160 Alien Tech Used (0) 0 Bonus (200) 200 TOTAL SCORE: 4837 Bonus ------- Entered Garrisons 200 Cogmind --------- Core Integrity 0/700 Matter 298/300 Energy 99/100 System Corruption 6% Temperature Cool (9) Movement Core (200) Ox3 Location -7/Garrison Parts ------- > --- POWER (2) -------- (None) > --- PROPULSION (5) --- (None) > --- UTILITY (4) ------ Medium Storage Unit > --- WEAPON (2) ------- (None) > --- INVENTORY (10) --- Enhanced Nuclear Core Improved Sensor Array Advanced Terrain Scan Processor Weapon Cycler System Restoration Module EM Pulse Cannon Missile Launcher Remote Datajack Peak State ------------ > --- POWER ------------ Enhanced Nuclear Core Enhanced Nuclear Core > --- PROPULSION ------- Gravmag System Gravmag System Improved Airjet Improved Airjet Improved VTOL Module > --- UTILITY ---------- Improved Cooling System Medium Storage Unit Trap Scanner Improved Signal Interpreter > --- WEAPON ----------- Flak Gun Advanced Assault Cannon > --- INVENTORY -------- Enhanced Nuclear Core Improved Sensor Array Advanced Terrain Scan Processor Weapon Cycler System Restoration Module EM Pulse Cannon Gauss Rifle Missile Launcher [Rating: 54] Favorites ----------- Power Enhanced Nuclear Core Engine Subdweller Power Source Power Core Enhanced Nuclear Core Propulsion Aluminum Leg Leg Aluminum Leg Hover Unit Gravmag System Flight Unit Cesium-ion Thruster Utility Small Storage Unit Device Trap Scanner Storage Small Storage Unit Processor Improved Signal Interpreter Weapon Missile Launcher Energy Gun EM Pulse Gun Energy Cannon Ion Cannon Ballistic Gun Shotgun Ballistic Cannon Advanced Assault Cannon Launcher Missile Launcher Special Weapon Flamer Build | -11 -10 -10 -8 -7 -7 ------- Run | Yrd Mat Sub Mat Fac Gar Slots Evolved 6 | . . . 4 2 . Power 1 | . . . . 1 . Propulsion 3 | . . . 3 . . Utility 2 | . . . 1 1 . Weapon . | . . . . . . Parts Attached 42 | 5 2 4 20 10 1 Power 6 | 1 . 2 1 2 . Engine 3 | 1 . 2 . . . Core 3 | . . . 1 2 . Reactor . | . . . . . . Propulsion 17 | 2 . . 12 3 . Treads . | . . . . . . Leg 5 | 2 . . 3 . . Wheel . | . . . . . . Hover 9 | . . . 7 2 . Flight 3 | . . . 2 1 . Utility 8 | 1 1 . 3 3 . Device 4 | . . . 1 3 . Storage 2 | 1 . . 1 . . Processor 2 | . 1 . 1 . . Hackware . | . . . . . . Protection . | . . . . . . Artifact . | . . . . . . Weapon 11 | 1 1 2 4 2 1 Energy Gun 2 | 1 1 . . . . Energy Cannon 1 | . . . 1 . . Ballistic Gun 4 | . . 2 . 1 1 Ballistic Cannon 1 | . . . . 1 . Launcher 2 | . . . 2 . . Special Weapon 1 | . . . 1 . . Impact Weapon . | . . . . . . Slashing Weapon . | . . . . . . Piercing Weapon . | . . . . . . Special Melee Weapon . | . . . . . . Unidentified Prototypes 7 | . . . 5 2 . Parts Lost 17 | . . 1 1 6 9 Power 2 | . . . . 1 1 Propulsion 8 | . . . 1 4 3 Utility 2 | . . . . . 2 Weapon 5 | . . 1 . 1 3 Highest Loss Streak 8 | . . 1 1 2 8 To Critical Strikes . | . . . . . . Average Backups 7 | 3 6 8 8 8 8 Power 1 | . 1 1 1 1 1 Propulsion 1 | 1 2 4 2 . . Utility 2 | . . 1 3 3 4 Weapon 1 | 1 2 . 1 3 2 Tool/Special . | . . . . . . Unused Backups 24 | . 3 2 9 4 6 Power 1 | . . 1 . . . Propulsion 7 | . 2 . 5 . . Utility 7 | . . . 3 . 4 Weapon 7 | . 1 1 1 3 1 Tool/Special 2 | . . . . 1 1 Average Slot Usage (%) 88 | . 87 100 85 96 63 Engine 5 | . 14 14 3 . . Core 6 | . . . 5 14 6 Leg 13 | . 28 28 15 . . Hover 17 | . . . 19 34 18 Device 6 | . . . 3 14 12 Storage 9 | . 14 14 9 7 7 Processor 8 | . 3 14 9 7 6 Energy Gun 4 | . 26 6 . . . Energy Cannon 1 | . . . . 5 . Ballistic Gun 8 | . . 21 7 2 10 Launcher 3 | . . . 7 4 . Peak Build Rating 54 | 5 8 11 43 54 38 Average Rating 27 | 3 6 9 26 50 31 On Entrance 16 | . 5 8 11 37 38 Naked Turns . | . . . . . . Heaviest Build 42 | 12 14 17 32 42 32 Greatest Support 45 | 20 20 20 45 45 25 Greatest Overweight (x) 7 | 3 . . 2 1 7 Average Overweight (x) . | . . . . . 1 Largest Inventory Capacity 10 | 8 8 8 10 10 10 Average Capacity 8 | 7 8 8 8 10 10 Most Carried 10 | 5 8 8 10 10 9 Average Carried 7 | 3 6 7 8 8 8 Final Capacity 10 | 8 8 8 10 10 10 Final Carried 9 | 5 8 8 9 9 8 Class Distribution -------------------- 93% | Mutant 6% | Scavenger-Mutant Dominant Class ---------------- Mutant | -10/Materials Mutant | -10/Subcaves Mutant | -8/Materials Mutant | -7/Factory Mutant | -7/Garrison Resources | -11 -10 -10 -8 -7 -7 ----------- Run | Yrd Mat Sub Mat Fac Gar Matter Collected 1278 | 177 . 213 298 473 117 Remotely . | . . . . . . Salvage Created 1572 | . 149 193 378 735 117 Parts 93 | . 7 9 35 40 2 Haulers Intercepted 2 | . 1 . 1 . . Recyclers Shooed 2 | . . . . 2 . Parts Field Recycled . | . . . . . . Retrieved Matter . | . . . . . . Parts Self-Destructed . | . . . . . . Prevented . | . . . . . . Kills | -11 -10 -10 -8 -7 -7 ------- Run | Yrd Mat Sub Mat Fac Gar Combat Hostiles Destroyed 43 | . 1 4 14 21 3 Guns 15 | . . 4 3 5 3 Cannons 12 | . . . 1 11 . AOE 15 | . . . 10 5 . Classes Destroyed 10 | . 3 1 3 3 . Builder 1 | . . . . 1 . Hauler 2 | . 1 . 1 . . Recycler 1 | . . . . 1 . Operator 1 | . . . 1 . . Watcher 4 | . 2 . 1 1 . Swarmer 17 | . . . 7 10 . Grunt 14 | . 1 . 2 8 3 Sentry 6 | . . . 5 1 . Hunter 2 | . . . . 2 . Subdweller 4 | . . 4 . . . Best Kill Streak 7 | . 4 2 7 5 3 Combat Bots Only 5 | . 1 2 5 5 3 Max Kills in Single Turn 3 | . 1 1 3 3 1 Gunslinging . | . . . . . . Exploded 3 | . . . 3 3 . Melee . | . . . . . . Uniques/NPCs Destroyed . | . . . . . . Combat | -11 -10 -10 -8 -7 -7 -------- Run | Yrd Mat Sub Mat Fac Gar Hostile Shots Fired 383 | . 4 25 40 197 117 Missed 125 | . . 7 13 71 34 Hits 258 | . 4 18 27 126 83 Melee 7 | . . . . . 7 Projectile 251 | . 4 18 27 126 76 AOE 1 | . . . . . 1 Critical Strikes 11 | . . . 1 1 9 Part Disruptions 1 | . . . . . 1 Damage Taken 2923 | . 33 316 368 1244 962 Core 993 | . . 112 176 202 503 Absorbed by Shields 36 | . . . . . 36 Ignored by Resistances 878 | . 10 87 104 388 289 Regen/Repaired (Parts) 14 | . . . 14 . . Core Remaining (%) 74 | 100 . 55 68 . . Volleys Fired 127 | . 9 32 30 49 7 Largest 2 | . 2 2 2 2 2 Hottest 123 | . 80 80 123 96 68 Shots Fired 223 | . 18 64 47 80 14 Gun 135 | . 18 64 17 23 13 Cannon 55 | . . . 5 49 1 Launcher 27 | . . . 19 8 . Special 6 | . . . 6 . . Kinetic 118 | . . 53 17 34 14 Thermal 49 | . . . 11 38 . Explosive 22 | . . . 14 8 . Electromagnetic 34 | . 18 11 5 . . Robot Hit Streak 21 | . 5 13 17 21 10 Robot Miss Streak 6 | . 2 3 2 6 4 Penetration Max . | . . . . . . Secondary Targets . | . . . . . . Shots Hit Robots 154 | . 12 30 35 64 13 Core Hits 116 | . 5 9 27 62 13 Critical Kills 1 | . . . 1 . . Critical Parts Destroyed . | . . . . . . Critical Strikes 2 | . 1 . 1 . . Destroy 1 | . . . 1 . . Corrupt 1 | . 1 . . . . Melee Attacks . | . . . . . . Impact . | . . . . . . Slashing . | . . . . . . Piercing . | . . . . . . Sneak Attacks . | . . . . . . Combat Hostiles . | . . . . . . Follow-up Attacks . | . . . . . . Damage Inflicted 4163 | . 204 381 1162 2144 272 Guns 1575 | . 173 381 268 511 242 Cannons 1077 | . . . 89 958 30 Explosions 1444 | . 29 . 753 662 . Melee . | . . . . . . Ramming 15 | . 2 . . 13 . Kinetic 1597 | . . 305 268 752 272 Thermal 988 | . 29 . 242 717 . Explosive 1158 | . . . 496 662 . Electromagnetic 405 | . 173 76 156 . . Impact . | . . . . . . Slashing . | . . . . . . Piercing . | . . . . . . Highest Corruption 6 | . . . 2 . 6 Average Corruption 3 | . . . 2 . 3 Corruption Purged . | . . . . . . Corruption Blocked . | . . . . . . Effects 4 | . . . 2 . 2 Message Errors 2 | . . . 1 . 1 Heat Flow Errors 1 | . . . 1 . . Alerts 1 | . . . . . 1 Overload Shots . | . . . . . . Overflow Damage 36 | . . . 5 31 . Projectiles 31 | . . . . 31 . Explosions 5 | . . . 5 . . Melee . | . . . . . . Knockbacks 3 | . . . . 2 1 Impact 1 | . . . . 1 . Kinetic 2 | . . . . 1 1 Secondary . | . . . . . . Self-Inflicted Damage 102 | . . . 96 6 . Shots 3 | . . . 3 . . Rammed 1 | . . . . 1 . Targets Rammed 2 | . 1 . . 1 . Kicked 1 | . 1 . . . . Crushed . | . . . . . . Highest Temperature 443 | . 114 . 443 20 1 Average Temperature 72 | . 41 . 84 13 1 Received Heat Transfer 975 | . 24 117 144 291 399 Effects 1 | . . . 1 . . Shutdowns 1 | . . . 1 . . Siege Activations . | . . . . . . Martial Activations . | . . . . . . Shielding Activations . | . . . . . . Robots Disrupted . | . . . . . . Combat Hostiles . | . . . . . . Robots Corrupted 1 | . 1 . . . . Combat Hostiles 1 | . 1 . . . . Parts Fried 2 | . 1 . 1 . . Impact Corruptions . | . . . . . . Robots Melted . | . . . . . . Combat Hostiles . | . . . . . . Parts Melted 3 | . . . 1 2 . Heat Transferred 1795 | . 50 . 598 1147 . Parts Sabotaged . | . . . . . . Parts Stolen . | . . . . . . Parts Stripped . | . . . . . . Power Chain Reactions 3 | . 1 . 2 . . Alert | -11 -10 -10 -8 -7 -7 ------- Run | Yrd Mat Sub Mat Fac Gar Maximum Alert Level 1 | . . . 1 1 1 Low Security (%) 67 | 100 100 . 89 46 32 Level 1 32 | . . . 10 53 67 Level 2 . | . . . . . . Level 3 . | . . . . . . Level 4 . | . . . . . . Level 5 . | . . . . . . High Security . | . . . . . . Max Security . | . . . . . . Peak Influence 366 | . 30 . 228 366 238 Initial 188 | . . . . 68 188 Average 144 | . 4 . 103 220 215 Influence Increases 1280 | . 47 . 576 597 60 Destroy 0b10 Robot/C 780 | . 20 . 280 420 60 Destroy 0b10 Robot/NC 45 | . 15 . 15 15 . Destroy Leader 142 | . 6 . 74 62 . Successful Hack 18 | . . . 14 4 . Disable Machine 63 | . . . 45 18 . Destroy Structure 202 | . 6 . 148 48 . Lose Combat Pursuer 30 | . . . . 30 . Influence Decreases 1122 | . 47 . 400 468 207 Entered New Map 225 | . . . . 108 117 Time Decay 597 | . 47 . 250 300 . Lost Part 150 | . . . . 60 90 Purge Threat 150 | . . . 150 . . Squads Dispatched 5 | . . . . 5 . Investigation . | . . . . . . Extermination 2 | . . . . 2 . Reinforcement 3 | . . . . 3 . Assault . | . . . . . . Garrison . | . . . . . . Intercept . | . . . . . . Searches Triggered . | . . . . . . Construction Impeded 1 | . . . . 1 . Haulers Reinforced 1 | . . . . 1 . Active Scanning Responses . | . . . . . . Cargo Convoy Interrupts . | . . . . . . Stealth | -11 -10 -10 -8 -7 -7 --------- Run | Yrd Mat Sub Mat Fac Gar Distress Signals 1 | . 1 . . . . Communications Jammed . | . . . . . . Distress Signals . | . . . . . . Times Spotted 65 | . 3 7 18 30 7 Peak Tracking Total 5 | . 3 2 4 5 4 Tactical Retreats 2 | . . 1 . 1 . Traps | -11 -10 -10 -8 -7 -7 ------- Run | Yrd Mat Sub Mat Fac Gar Traps Triggered 2 | . . . . 1 1 Indirectly . | . . . . . . Trap Hack Attempts . | . . . . . . Triggered . | . . . . . . Disarmed . | . . . . . . Reprogrammed . | . . . . . . Reused . | . . . . . . Traps Extracted . | . . . . . . Installed . | . . . . . . Triggered . | . . . . . . Machines | -11 -10 -10 -8 -7 -7 ---------- Run | Yrd Mat Sub Mat Fac Gar Machines Disabled 7 | . . . 5 2 . Max in Single Turn 2 | . . . 2 1 . Machines Repaired . | . . . . . . Machines Dismantled . | . . . . . . Machines Sabotaged . | . . . . . . Overloaded Fab Kills . | . . . . . . Hacking | -11 -10 -10 -8 -7 -7 --------- Run | Yrd Mat Sub Mat Fac Gar Machines Accessed 14 | . . . 7 7 . Terminals 10 | . . . 5 5 . Fabricators 1 | . . . . 1 . Repair Stations 1 | . . . 1 . . Recycling Units 1 | . . . 1 . . Scanalyzers . | . . . . . . Garrison Access 1 | . . . . 1 . Total Hacks 33 | . . . 25 8 . Successful 28 | . . . 21 7 . Failed 5 | . . . 4 1 . Catastrophic 2 | . . . 2 . . Database Lockouts . | . . . . . . Manual . | . . . . . . Terminals 26 | . . . 20 6 . Fabricators 1 | . . . . 1 . Repair Stations 2 | . . . 2 . . Recycling Units 3 | . . . 3 . . Scanalyzers . | . . . . . . Garrison Access 1 | . . . . 1 . Terminal Hacks 21 | . . . 16 5 . Record 11 | . . . 9 2 . Robot Analysis 1 | . . . 1 . . Prototype ID Bank 1 | . . . 1 . . Open DSF 2 | . . . . 2 . Unreport Threat 1 | . . . 1 . . Locate Traps 1 | . . . 1 . . Hauler Manifests 1 | . . . 1 . . Registered Components 2 | . . . 1 1 . Zone Layout 1 | . . . 1 . . Fabricator Hacks 1 | . . . . 1 . Network Status 1 | . . . . 1 . Repair Station Hacks 2 | . . . 2 . . Scan Component 1 | . . . 1 . . Repair 1 | . . . 1 . . Recycling Unit Hacks 3 | . . . 3 . . Report Inventory 1 | . . . 1 . . Retrieve Matter 1 | . . . 1 . . Retrieve Components 1 | . . . 1 . . Scanalyzer . | . . . . . . Garrison Access Hacks 1 | . . . . 1 . Unlock Access 1 | . . . . 1 . Unauthorized Hacks . | . . . . . . Terminals . | . . . . . . Fabricators . | . . . . . . Repair Stations . | . . . . . . Recycling Units . | . . . . . . Scanalyzers . | . . . . . . Garrison Access . | . . . . . . Data Cores Recovered 1 | . . . 1 . . Used . | . . . . . . Hacking Detections 9 | . . . 4 5 . Full Trace Events . | . . . . . . Feedback Events . | . . . . . . Feedback Blocked . | . . . . . . Robot Schematics Acquired . | . . . . . . Robots Built . | . . . . . . Authchips . | . . . . . . Time . | . . . . . . Total Robot Build Rating . | . . . . . . Part Schematics Acquired . | . . . . . . Parts Built . | . . . . . . Authchips . | . . . . . . Time . | . . . . . . Total Part Build Rating . | . . . . . . Parts Repaired 1 | . . . 1 . . Time 32 | . . . 32 . . Parts Recycled . | . . . . . . Recycled Matter . | . . . . . . Retrieved Matter 65 | . . . 65 . . Retrieved Components 10 | . . . 10 . . Parts Scanalyzed . | . . . . . . Part Schematics Acquired . | . . . . . . Parts Damaged . | . . . . . . Bothacking | -11 -10 -10 -8 -7 -7 ------------ Run | Yrd Mat Sub Mat Fac Gar Used RIF Installer . | . . . . . . Robots Hacked . | . . . . . . Non-combat . | . . . . . . Combat . | . . . . . . Robot Hacks Applied . | . . . . . . Relay Couplers Released . | . . . . . . Fabnet Peak Effective % . | . . . . . . Robots Rewired . | . . . . . . Allies Hacked . | . . . . . . Hacks Repelled . | . . . . . . Allies | -11 -10 -10 -8 -7 -7 -------- Run | Yrd Mat Sub Mat Fac Gar Total Allies . | . . . . . . Largest Group . | . . . . . . Highest-Rated Group . | . . . . . . Highest-Rated Ally . | . . . . . . Total Orders . | . . . . . . Ally Attacks . | . . . . . . Total Damage . | . . . . . . Kills . | . . . . . . Allies Corrupted . | . . . . . . Allies Melted . | . . . . . . Intel | -11 -10 -10 -8 -7 -7 ------- Run | Yrd Mat Sub Mat Fac Gar Active Infowar (turns) 1036 | . . . 175 597 264 Optics 175 | . . . 175 . . Traps 861 | . . . . 597 264 Robot Analysis Total 1 | . . . 1 . . Derelict Logs Recovered 1 | . . 1 . . . Drone Launches . | . . . . . . Drone Recoveries . | . . . . . . Exploration | -11 -10 -10 -8 -7 -7 ------------- Run | Yrd Mat Sub Mat Fac Gar Turns Passed 2224 | 75 247 446 551 605 300 Spaces Moved 1886 | 46 174 269 449 831 117 Core 41 | 18 . . . . 23 Treads . | . . . . . . Legs 580 | 28 174 269 109 . . Wheels . | . . . . . . Hover 1265 | . . . 340 831 94 Flight . | . . . . . . Fastest Speed 40 | 50 120 120 40 40 108 Average Speed 83 | 137 120 120 81 52 141 Slowest Speed 400 | 200 120 120 190 108 400 Overloaded Moves . | . . . . . . Propulsion Burnouts . | . . . . . . Robots Hopped . | . . . . . . Potential Cave-ins . | . . . . . . Cave-ins Triggered . | . . . . . . Exploration Rate (%) 25 | 4 24 16 52 25 33 Regions Visited 5 Branch Regions 1 Pre-discovered Areas . | . . . . . . Known Exits Taken 4 | . 1 1 1 1 . Unknown Exits Taken 1 | 1 . . . . . Scrap Searched . | . . . . . . Spaces Dug 8 | . . . 8 . . Terrain Destroyed 213 | . 6 . 157 50 . Melee . | . . . . . . Projectile 3 | . . . 1 2 . AOE 210 | . 6 . 156 48 . Terrain Rammed . | . . . . . . Walls Destroyed . | . . . . . . Machines Disabled . | . . . . . . Actions | -11 -10 -10 -8 -7 -7 --------- Run | Yrd Mat Sub Mat Fac Gar Total 2317 | 56 195 329 583 915 239 Wait 162 | . . 17 36 3 106 Move 1882 | 45 173 268 448 831 117 Hop . | . . . . . . Pick Up 45 | 6 7 3 18 11 . Fast Attach 27 | 4 1 2 17 3 . Attach 10 | 1 1 . 1 6 1 Detach . | . . . . . . Swap 8 | . . 2 3 3 . Drop 46 | . 3 5 30 8 . Fire 127 | . 9 32 30 49 7 Melee . | . . . . . . Ram 1 | . . . . 1 . Kick 1 | . 1 . . . . Crush . | . . . . . . Escape Stasis 8 | . . . . . 8 Rewire . | . . . . . . Trap . | . . . . . . Miscellaneous . | . . . . . . Route ------- -11/Scrapyard -10/Materials -10/Subcaves (discovered 2 exits: *Mat / [*Scr]) -8/Materials (discovered 2 exits: *Fac x2) -7/Factory -7/Garrison (discovered 1 exit: [*Fac]) History --------- Turn | Location | Event 44 | -11/Scrapyard | Discovered new exit (range 15) 76 | -11/Scrapyard | Entered Materials 77 | -10/Materials | Met a group of wandering Federalists 115 | -10/Materials | Discovered new exit (range 6) 309 | -10/Materials | Build established: Mutant 322 | -10/Materials | Identified exit to Subcaves 323 | -10/Materials | Entered Subcaves 324 | -10/Subcaves | Continued accompanying wandering Federalists (5) 332 | -10/Subcaves | Learned Materials terminal intel 757 | -10/Subcaves | Shifting Twisted Machinery released Flamer 758 | -10/Subcaves | Discovered new exit (range 9) 767 | -10/Subcaves | Shifting Twisted Machinery released Sub. Laser 768 | -10/Subcaves | Identified exit to Materials 769 | -10/Subcaves | Entered Materials 769 | -8/Materials | Evolved 4 slots: Propulsion x3, Utility x1 770 | -8/Materials | Loaded intel: 12 terminal locations 1118 | -8/Materials | Discovered new exit (range 9) 1184 | -8/Materials | Repaired Flamer 1313 | -8/Materials | Discovered new exit (range 8) 1320 | -8/Materials | Identified exit to Factory 1320 | -8/Materials | Entered Factory 1320 | -7/Factory | Evolved 2 slots: Power x1, Utility x1 1925 | -7/Factory | Identified exit to Garrison 1925 | -7/Factory | Entered Garrison 1959 | -7/Garrison | Triggered checkpoint 2137 | -7/Garrison | Triggered checkpoint 2193 | -7/Garrison | Core integrity fell below 50% 2205 | -7/Garrison | Discovered new exit (range 15) 2208 | -7/Garrison | Core integrity fell below 20% 2220 | -7/Garrison | Lost 8 parts (1p3n2u2w) 2225 | -7/Garrison | Destroyed by P-60 Hacker with Shock Rifle Last Messages --------------- 01992_ Acquired 37 matter. 02137_ Beams of light sweep through the air. An alarm sounds. 02137_ Flak Gun destroyed. 02151_ Imp. Airjet destroyed. 02155_ Gravmag System destroyed. 02169_ Imp. Cooling System destroyed. 02172_ Imp. Hover Unit destroyed. 02178_ P-60 Hacker resets G-47 Trooper, system corruption cleaned. 02183_ Critical hit (Burn: +37). 02186_ Enh. Nuclear Core destroyed. 02187_ Gauss Rifle destroyed. 02189_ Trap Scanner destroyed. 02194_ System corrupted: IFF burst signal emitted. 02197_ C-17 Slicer knocked back. 02198_ Imp. Signal Interpreter severed. 02205_ EXIT=FOUND 02218_ 4C/R3APITG